[Event "4th Batumi Cup 2018"]
[Site "Batumi"]
[Date "2018.07.07"]
[Round "6"]
[White "Jumabayev, Rinat"]
[Black "Pourramezanali, Amirreza"]
[Result "1-0"]
[ECO "D45"]
[WhiteElo "2594"]
[BlackElo "2537"]
[Annotator "ChessBase"]
[PlyCount "51"]
[EventDate "2018.07.03"]
[EventType "swiss"]
[EventCountry "GEO"]
[SourceTitle "playchess.com"]
[Source "ChessBase"]
[SourceQuality "1"]
[TimeControl "40/5400+30:1800+30"]

1. d4 {[%emt 0:00:00]} d5 {[%emt 0:00:35]} 2. c4 {[%emt 0:00:00]} c6 {[%emt 0:00:07]} 3. Nf3 {[%emt 0:00:00]} Nf6 {[%emt 0:00:13]} 4. Nc3 {[%emt 0:00:00]} e6 {[%emt 0:00:21]} 5. e3 {[%emt 0:00:00]} Nbd7 {[%emt 0:00:05]} 6. Be2 {[%emt 0:00:00]} Bd6 {[%emt 0:00:55]} 7. O-O {[%emt 0:00:00]} O-O {[%emt 0:05:21]} 8. b3 {[%emt 0:00:04]} b6 {[%emt 0:01:12]} 9. Bb2 {[%emt 0:00:04]} Bb7 {[%emt 0:00:04]} 10. Qc2 {[%emt 0:00:16]} Qe7 {[%emt 0:00:25]} 11. Rfe1 {[%emt 0:00:05]} Rad8 {[%emt 0:04:45]} 12. e4 {[%emt 0:05:15]} Nxe4 {[%emt 0:00:15]} 13. Nxe4 {[%emt 0:00:05]} dxe4 {[%emt 0:00:05]} 14. Qxe4 {[%emt 0:00:03]} Bb4 {[%emt 0:01:52]} 15. Bd3 {[%emt 0:00:54]} Nf6 {[%emt 0:04:38]} 16. Qh4 {[%emt 0:00:13]} Bxe1 {[%emt 0:00:36]} 17. Bxh7+ {[%emt 0:00:45]} Kh8 {[%emt 0:00:23]} 18. Bc2+ {[%emt 0:11:57]} Kg8 {[%emt 0:00:06]} 19. Bh7+ {[%emt 0:12:20]} Kh8 {[%emt 0:00:21]} 20. Bc2+ {[%emt 0:08:35]} Kg8 {[%emt 0:00:02]} 21. Rxe1 {[%emt 0:00:24]} Rfe8 {[%emt 0:07:50]} 22. Re3 {[%emt 0:07:01]} g6 {[%emt 0:20:04]} 23. d5 {[%emt 0:05:52]} Kg7 {[%emt 0:08:35]} 24. dxe6 {[%emt 0:07:46]} Rh8 {[%emt 0:05:03]} 25. Qf4 {[%emt 0:01:04]} Rh5 {[%emt 0:00:54]} 26. g4 {[%emt 0:01:20]} 1-0

[Event "4th Batumi Cup 2018"]
[Site "Batumi"]
[Date "2018.07.07"]
[Round "6"]
[White "Pantsulaia, Levan"]
[Black "Sindarov, Javokhir"]
[Result "1-0"]
[ECO "E62"]
[WhiteElo "2575"]
[BlackElo "2474"]
[Annotator "ChessBase"]
[PlyCount "47"]
[EventDate "2018.07.03"]
[EventType "swiss"]
[EventCountry "GEO"]
[SourceTitle "playchess.com"]
[Source "ChessBase"]
[SourceQuality "1"]
[TimeControl "40/5400+30:1800+30"]

1. Nf3 {[%emt 0:00:00]} g6 {[%emt 0:00:00]} 2. d4 {[%emt 0:00:00]} d6 {[%emt 0:00:08]} 3. g3 {[%emt 0:00:13]} Bg7 {[%emt 0:00:12]} 4. Bg2 {[%emt 0:00:08]} Nf6 {[%emt 0:00:04]} 5. c4 {[%emt 0:00:18]} O-O {[%emt 0:00:12]} 6. Nc3 {[%emt 0:00:06]} Nc6 {[%emt 0:00:14]} 7. O-O {[%emt 0:05:25]} Bg4 {[%emt 0:00:03]} 8. d5 {[%emt 0:02:31]} Na5 {[%emt 0:00:11]} 9. Qd3 {[%emt 0:02:05]} c5 {[%emt 0:00:51]} 10. Nd2 {[%emt 0:04:59]} a6 {[%emt 0:08:55]} 11. Rb1 {[%emt 0:06:18]} Rb8 {[%emt 0:09:05]} 12. b3 {[%emt 0:11:11]} Bd7 {[%emt 0:03:26]} 13. Bb2 {[%emt 0:02:35]} b5 {[%emt 0:00:24]} 14. h3 {[%emt 0:00:07]} Qc8 {[%emt 0:07:24]} 15. g4 {[%emt 0:02:39]} Qd8 {[%emt 0:05:46]} 16. Ba1 {[%emt 0:04:29]} e6 {[%emt 0:06:51]} 17. dxe6 {[%emt 0:01:56]} Bxe6 {[%emt 0:00:18]} 18. cxb5 {[%emt 0:00:59]} axb5 {[%emt 0:00:28]} 19. Nxb5 {[%emt 0:01:23]} d5 {[%emt 0:00:03]} 20. a4 {[%emt 0:04:47]} Nc6 {[%emt 0:09:38]} 21. Qc3 {[%emt 0:05:46]} Rc8 {[%emt 0:12:16]} 22. Qxc5 {[%emt 0:00:22]} Ne4 {[%emt 0:01:09]} 23. Nxe4 {[%emt 0:01:27]} Nd4 {[%emt 0:00:05]} 24. Nxd4 {[%emt 0:01:20]} 1-0

[Event "4th Batumi Cup 2018"]
[Site "Batumi"]
[Date "2018.07.07"]
[Round "6"]
[White "Mosadeghpour, Masoud"]
[Black "Garayev, Kanan"]
[Result "1-0"]
[ECO "C65"]
[WhiteElo "2531"]
[BlackElo "2300"]
[Annotator "RC"]
[PlyCount "67"]
[EventDate "2018.07.03"]
[EventType "swiss"]
[EventCountry "GEO"]
[SourceTitle "playchess.com"]
[Source "ChessBase"]
[SourceQuality "1"]
[TimeControl "40/5400+30:1800+30"]

1. e4 {[%emt 0:07:56]} e5 {[%emt 0:00:00]} 2. Nf3 {[%emt 0:00:15]} Nc6 {[%emt 0:00:00]} 3. Bb5 {[%emt 0:00:21]} Nf6 {[%emt 0:00:00]} 4. d3 {[%emt 0:00:34]} d6 {[%emt 0:00:03]} 5. c4 {[%emt 0:02:14]} g6 {[%emt 0:04:16]} 6. O-O {[%emt 0:00:57]} Bg7 {[%emt 0:00:16]} 7. Nc3 {[%emt 0:06:58]} O-O {[%emt 0:00:59]} 8. Bxc6 {[%emt 0:05:01]} bxc6 {[%emt 0:00:10]} 9. d4 {[%emt 1:10:14]} Bg4 {[%emt 0:20:41]} 10. dxe5 {[%emt 0:00:00]} Bxf3 {[%emt 0:09:00]} 11. Qxf3 {[%emt 0:00:00]} dxe5 {[%emt 0:00:07]} 12. Be3 {[%emt 0:00:00]} Qe7 {[%emt 0:02:46]} 13. Rfd1 {[%emt 0:00:00]} Nd7 {[%emt 0:05:09]} 14. Rd2 {[%emt 0:00:00]} Rfe8 {[%emt 0:09:57]} 15. Rad1 {[%emt 0:00:00]} Nf8 {[%emt 0:00:43]} 16. Na4 {[%emt 0:00:00]} Qb4 {[%emt 0:07:29]} 17. b3 {[%emt 0:00:00]} Ne6 {[%emt 0:02:37]} 18. Rd7 {[%emt 0:00:00]} Rf8 {[%emt 0:00:45]} 19. h4 {[%emt 0:00:00]} Qb8 {[%emt 0:06:05]} 20. Nc5 {[%emt 0:00:00]} Nd4 {[%emt 0:01:12]} 21. Bxd4 {[%emt 0:00:00]} exd4 {[%emt 0:00:06]} 22. Qf4 {[%emt 0:00:00]} Qb4 {[%emt 0:01:34]} 23. Nd3 {[%emt 0:00:00]} Qa5 {[%emt 0:00:17]} 24. Qd2 {[%emt 0:00:00]} Qh5 {[%emt 0:02:02]} 25. g3 {[%emt 0:00:00]} Qg4 {[%emt 0:01:55]} 26. Rxc7 {[%emt 0:00:00]} Qxe4 {[%emt 0:00:41]} 27. Re1 {[%emt 0:00:00]} Qf3 {[%emt 0:00:15]} 28. Qe2 {[%emt 0:00:00]} Qf6 {[%emt 0:01:19]} 29. Qg4 {[%emt 0:00:00]} a5 {[%emt 0:04:40]} 30. Kg2 {[%emt 0:03:04]} Qd6 {[%emt 0:04:03]} 31. Qd7 {[%emt 0:01:21]} Qa3 {[%emt 0:01:13]} 32. Re7 {[%emt 0:01:40]} Rad8 {[%emt 0:03:40]} 33. Qe6 {[%emt 0:00:12]} Rd6 {[%emt 0:01:21]} 34. Rxf7 {[%emt 0:00:24]} 1-0

[Event "4th Batumi Cup 2018"]
[Site "Batumi"]
[Date "2018.07.07"]
[Round "6"]
[White "Quparadze, Giga"]
[Black "Smirnov, Pavel"]
[Result "1/2-1/2"]
[ECO "B40"]
[WhiteElo "2503"]
[BlackElo "2576"]
[Annotator "ChessBase"]
[PlyCount "56"]
[EventDate "2018.07.03"]
[EventType "swiss"]
[EventCountry "GEO"]
[SourceTitle "playchess.com"]
[Source "ChessBase"]
[SourceQuality "1"]
[TimeControl "40/5400+30:1800+30"]

1. e4 {[%emt 0:00:00]} c5 {[%emt 0:00:00]} 2. Nf3 {[%emt 0:00:00]} e6 {[%emt 0:00:00]} 3. g3 {[%emt 0:00:00]} Nc6 {[%emt 0:01:27]} 4. Bg2 {[%emt 0:00:07]} Nf6 {[%emt 0:00:10]} 5. Qe2 {[%emt 0:00:09]} e5 {[%emt 0:01:09]} 6. O-O {[%emt 0:00:09]} Be7 {[%emt 0:00:04]} 7. c3 {[%emt 0:00:37]} O-O {[%emt 0:02:42]} 8. d4 {[%emt 0:04:49]} cxd4 {[%emt 0:05:24]} 9. cxd4 {[%emt 0:00:50]} d5 {[%emt 0:03:53]} 10. exd5 {[%emt 0:01:08]} Nxd4 {[%emt 0:04:47]} 11. Nxd4 {[%emt 0:00:07]} exd4 {[%emt 0:00:05]} 12. Nd2 {[%emt 0:02:07]} Bg4 {[%emt 0:10:23]} 13. Qc4 {[%emt 0:01:18]} Rc8 {[%emt 0:09:34]} 14. Qxd4 {[%emt 0:00:07]} Be2 {[%emt 0:07:09]} 15. Re1 {[%emt 0:00:45]} Bc5 {[%emt 0:01:17]} 16. Qf4 {[%emt 0:00:07]} Re8 {[%emt 0:06:56]} 17. Nb3 {[%emt 0:07:50]} Nxd5 {[%emt 0:12:09]} 18. Qf5 {[%emt 0:00:40]} Bg4 {[%emt 0:18:23]} 19. Rxe8+ {[%emt 0:00:06]} Qxe8 {[%emt 0:00:03]} 20. Qe4 {[%emt 0:00:04]} Nf6 {[%emt 0:04:21]} 21. Qxe8+ {[%emt 0:00:17]} Rxe8 {[%emt 0:00:02]} 22. h3 {[%emt 0:02:23]} Re1+ {[%emt 0:00:53]} 23. Kh2 {[%emt 0:00:07]} Bb6 {[%emt 0:01:08]} 24. hxg4 {[%emt 0:04:31]} Nxg4+ {[%emt 0:00:03]} 25. Kh3 {[%emt 0:00:04]} Nxf2+ {[%emt 0:00:04]} 26. Kh2 {[%emt 0:00:03]} Ng4+ {[%emt 0:00:04]} 27. Kh3 {[%emt 0:00:03]} Nf2+ {[%emt 0:00:07]} 28. Kh2 {[%emt 0:00:04]} Ng4+ {[%emt 0:01:20]} 1/2-1/2

[Event "4th Batumi Cup 2018"]
[Site "Batumi"]
[Date "2018.07.07"]
[Round "6"]
[White "Tutisani, Noe"]
[Black "Maghalashvili, Davit"]
[Result "1/2-1/2"]
[ECO "B89"]
[WhiteElo "2469"]
[BlackElo "2508"]
[Annotator "ChessBase"]
[PlyCount "50"]
[EventDate "2018.07.03"]
[EventType "swiss"]
[EventCountry "GEO"]
[SourceTitle "playchess.com"]
[Source "ChessBase"]
[SourceQuality "1"]
[TimeControl "40/5400+30:1800+30"]

1. e4 {[%emt 0:00:00]} c5 {[%emt 0:00:00]} 2. Nf3 {[%emt 0:00:00]} d6 {[%emt 0:00:00]} 3. d4 {[%emt 0:00:00]} cxd4 {[%emt 0:00:00]} 4. Nxd4 {[%emt 0:00:00]} Nf6 {[%emt 0:00:04]} 5. Nc3 {[%emt 0:00:00]} a6 {[%emt 0:00:43]} 6. Bc4 {[%emt 0:02:07]} e6 {[%emt 0:02:17]} 7. Be3 {[%emt 0:00:07]} Nc6 {[%emt 0:00:28]} 8. Qe2 {[%emt 0:00:30]} Qc7 {[%emt 0:00:44]} 9. Bb3 {[%emt 0:00:08]} Be7 {[%emt 0:00:19]} 10. O-O-O {[%emt 0:00:09]} Na5 {[%emt 0:00:20]} 11. g4 {[%emt 0:00:41]} b5 {[%emt 0:00:46]} 12. g5 {[%emt 0:00:08]} Nxb3+ {[%emt 0:00:11]} 13. axb3 {[%emt 0:00:06]} Nd7 {[%emt 0:00:07]} 14. Nf5 {[%emt 0:02:14]} exf5 {[%emt 0:00:13]} 15. Nd5 {[%emt 0:00:04]} Qd8 {[%emt 0:00:09]} 16. exf5 {[%emt 0:00:06]} Bb7 {[%emt 0:00:30]} 17. f6 {[%emt 0:02:00]} Bxd5 {[%emt 0:01:16]} 18. Rxd5 {[%emt 0:00:49]} gxf6 {[%emt 0:00:11]} 19. Re1 {[%emt 0:00:18]} Rg8 {[%emt 0:04:35]} 20. gxf6 {[%emt 0:04:20]} Nxf6 {[%emt 0:02:09]} 21. Rf5 {[%emt 0:00:51]} Ng4 {[%emt 0:03:38]} 22. Bg5 {[%emt 0:00:23]} Ne5 {[%emt 0:00:36]} 23. Bxe7 {[%emt 0:00:07]} Qxe7 {[%emt 0:00:06]} 24. f4 {[%emt 0:00:04]} Nd3+ {[%emt 0:00:36]} 25. cxd3 {[%emt 0:00:14]} Qxe2 {[%emt 0:00:09]} 1/2-1/2

[Event "4th Batumi Cup 2018"]
[Site "Batumi"]
[Date "2018.07.07"]
[Round "6"]
[White "Mgeladze, Tamaz"]
[Black "Rahul Srivatshav P"]
[Result "1-0"]
[ECO "A26"]
[WhiteElo "2374"]
[BlackElo "2397"]
[Annotator "NA"]
[PlyCount "141"]
[EventDate "2018.07.03"]
[EventType "swiss"]
[EventCountry "GEO"]
[SourceTitle "playchess.com"]
[Source "ChessBase"]
[SourceQuality "1"]
[TimeControl "40/5400+30:1800+30"]

1. c4 {[%emt 0:00:00]} Nf6 {[%emt 0:00:00]} 2. g3 {[%emt 0:00:00]} g6 {[%emt 0:00:09]} 3. Bg2 {[%emt 0:00:04]} Bg7 {[%emt 0:00:19]} 4. Nf3 {[%emt 0:00:04]} O-O {[%emt 0:00:23]} 5. O-O {[%emt 0:00:04]} d6 {[%emt 0:00:25]} 6. Nc3 {[%emt 0:00:05]} Nc6 {[%emt 0:00:24]} 7. d3 {[%emt 0:00:15]} e5 {[%emt 0:00:37]} 8. Rb1 {[%emt 0:00:03]} a5 {[%emt 0:00:35]} 9. a3 {[%emt 0:00:03]} h6 {[%emt 0:00:41]} 10. b4 {[%emt 0:00:04]} axb4 {[%emt 0:00:30]} 11. axb4 {[%emt 0:00:05]} Be6 {[%emt 0:00:27]} 12. b5 {[%emt 0:00:03]} Ne7 {[%emt 0:00:21]} 13. Bb2 {[%emt 0:01:31]} Qd7 {[%emt 0:00:35]} 14. Re1 {[%emt 0:00:06]} Bh3 {[%emt 0:00:33]} 15. Bh1 {[%emt 0:00:05]} Ng4 {[%emt 0:00:47]} 16. Ra1 {[%emt 0:01:14] A26: English Opening vs King's Indian with ...Nc6 and d3} (16. Qb3 f5 17. Ra1 Rab8 18. c5+ d5 19. e4 c6 20. exd5 cxd5 21. Nxe5 Nxe5 22. Nxd5 Nxd5 23. Rxe5 Bxe5 24. Qxd5+ Qxd5 25. Bxd5+ Kh7 26. Bxe5 Ra8 27. Rxa8 Rxa8 28. Bxb7 Ra5 29. Bc6 f4 30. gxf4 Ra2 31. b6 {1-0 (31) Eljanov,P (2742)-Nakamura,H (2741) Moscow 2010}) 16... f5 {[%emt 0:02:00]} 17. Rxa8 {[%emt 0:01:36]} Rxa8 {[%emt 0:00:07]} 18. Qb3 {[%emt 0:00:09]} Kh7 {[%emt 0:04:15]} 19. Nd2 {[%emt 0:07:03]} Rb8 $146 {[%emt 0:03:20]} ({Predecessor:} 19... c6 20. Ra1 Rxa1+ 21. Bxa1 e4 22. dxe4 fxe4 23. Bxe4 d5 24. cxd5 cxd5 25. Nxd5 Bxa1 {1-0 (40) Gagare,S (2287)-Maximov,D (2480) Pardubice 2012}) 20. Ra1 {[%emt 0:00:23]} Qe6 {[%emt 0:05:56]} 21. Nd5 {[%emt 0:07:24]} Nxd5 {[%emt 0:07:16]} 22. cxd5 {[%emt 0:06:56]} Qf7 {[%emt 0:01:39]} 23. b6 {[%emt 0:07:59]} f4 {[%emt 0:03:14]} 24. Bf3 {[%emt 0:02:46]} Nf6 {[%emt 0:24:48]} 25. Nc4 {[%emt 0:12:35]} Nxd5 {[%emt 0:09:07] [#]} 26. Nxd6 $1 {[%emt 0:17:25]} cxd6 {[%emt 0:00:18]} 27. Bxd5 {[%emt 0:00:27]} Qd7 {[%emt 0:02:05]} 28. Qa4 {[%emt 0:04:54]} Qf5 {[%emt 0:12:59]} 29. Rc1 {[%emt 0:04:01]} Rf8 {[%emt 0:06:49]} 30. Bf3 {[%emt 0:04:43]} Bg4 $16 {[%emt 0:03:20]} 31. Bxg4 {[%emt 0:03:42]} Qxg4 {[%emt 0:01:21]} 32. Qe4 {[%emt 0:01:40]} d5 {[%emt 0:00:56]} 33. Qf3 {[%emt 0:00:01]} Qe6 {[%emt 0:00:47]} 34. Rc7 {[%emt 0:00:09]} Rf5 {[%emt 0:03:55]} 35. e4 {[%emt 0:06:34]} Qxb6 {[%emt 0:03:20]} 36. exf5 {[%emt 0:00:43]} Qxc7 {[%emt 0:00:02]} 37. fxg6+ {[%emt 0:00:02]} Kxg6 {[%emt 0:00:30]} 38. Qxd5 {[%emt 0:00:02]} fxg3 {[%emt 0:00:22]} 39. Qe4+ {[%emt 0:00:32]} Kf7 {[%emt 0:00:17]} 40. hxg3 {[%emt 0:00:00]} Kg8 {[%emt 0:00:00]} 41. Kg2 {[%emt 0:04:08]} Bf6 {[%emt 0:10:18]} 42. Qg6+ {[%emt 0:09:06]} Qg7 {[%emt 0:02:04]} 43. Qf5 {[%emt 0:00:18]} Qf7 {[%emt 0:02:50]} 44. Qg4+ {[%emt 0:01:27]} Bg7 {[%emt 0:00:58]} 45. Qe4 {[%emt 0:00:13]} Qc7 {[%emt 0:00:42]} 46. Kf3 {[%emt 0:02:22]} Qf7+ {[%emt 0:02:18]} 47. Ke3 {[%emt 0:00:14]} Qe7 {[%emt 0:00:40]} 48. Qd5+ {[%emt 0:01:45]} Kh7 {[%emt 0:00:44]} 49. Qe4+ {[%emt 0:02:06]} Kg8 {[%emt 0:00:01]} 50. Ke2 {[%emt 0:00:01]} Qc7 {[%emt 0:04:20]} 51. Qc4+ {[%emt 0:03:18]} Qxc4 {[%emt 0:00:24]} 52. dxc4 {[%emt 0:00:04]} Kf7 {[%emt 0:00:51]} 53. Ke3 {[%emt 0:03:33]} Ke6 {[%emt 0:04:07]} 54. Ke4 {[%emt 0:00:29]} Bf6 {[%emt 0:04:37]} 55. g4 {[%emt 0:00:27]} b6 {[%emt 0:01:23]} 56. Bc3 {[%emt 0:00:25]} Bh4 {[%emt 0:01:35]} 57. f3 {[%emt 0:00:06]} Bf6 {[%emt 0:02:46]} 58. Bb2 {[%emt 0:00:24]} Kd6 {[%emt 0:00:40]} 59. f4 {[%emt 0:00:12]} Kc5 {[%emt 0:00:03]} 60. Bxe5 {[%emt 0:01:00]} Be7 {[%emt 0:00:39]} 61. Bd4+ {[%emt 0:00:53]} Kxc4 {[%emt 0:00:02]} 62. Bxb6 {[%emt 0:00:04]} Kb5 {[%emt 0:01:24]} 63. Bd4 {[%emt 0:00:07]} Bf8 {[%emt 0:00:01]} 64. Kd5 {[%emt 0:00:09]} Kb4 {[%emt 0:00:25]} 65. f5 {[%emt 0:00:07]} Kb3 {[%emt 0:00:40]} 66. Bc5 {[%emt 0:00:48]} Bg7 {[%emt 0:00:18]} 67. Be7 {[%emt 0:00:55]} Kc2 {[%emt 0:00:21]} 68. f6 {[%emt 0:00:34]} Bh8 {[%emt 0:00:01]} 69. f7 {[%emt 0:00:10]} Bg7 {[%emt 0:00:04]} 70. f8=Q {[%emt 0:00:06]} Bxf8 {[%emt 0:00:05]} 71. Bxf8 {[%emt 0:00:02]} 1-0

[Event "4th Batumi Cup 2018"]
[Site "Batumi"]
[Date "2018.07.07"]
[Round "6"]
[White "Pogosyan, Stefan"]
[Black "Gvetadze, Sofio"]
[Result "1/2-1/2"]
[ECO "A39"]
[WhiteElo "2356"]
[BlackElo "2316"]
[Annotator "NA"]
[PlyCount "104"]
[EventDate "2018.07.03"]
[EventType "swiss"]
[EventCountry "GEO"]
[SourceTitle "playchess.com"]
[Source "ChessBase"]
[SourceQuality "1"]
[TimeControl "40/5400+30:1800+30"]

1. d4 {[%emt 0:00:00]} Nf6 {[%emt 0:00:00]} 2. c4 {[%emt 0:00:00]} g6 {[%emt 0:00:00]} 3. Nc3 {[%emt 0:00:04]} Bg7 {[%emt 0:00:00]} 4. g3 {[%emt 0:00:29]} O-O {[%emt 0:00:38]} 5. Bg2 {[%emt 0:00:05]} c5 {[%emt 0:00:00]} 6. Nf3 {[%emt 0:00:47]} cxd4 {[%emt 0:00:01]} 7. Nxd4 {[%emt 0:00:05]} Nc6 {[%emt 0:00:04]} 8. O-O {[%emt 0:00:15]} Qb6 {[%emt 0:03:13]} 9. e3 {[%emt 0:01:03]} d6 {[%emt 0:00:27]} 10. b3 {[%emt 0:00:41]} Bd7 {[%emt 0:01:03] A39: Symmetrical English vs ...g6: 4 Bg2 Bg7 5 Nf3 Nf6 6 0-0 0-0 7 d4} 11. Bb2 {[%emt 0:00:33]} Rfc8 {[%emt 0:01:01]} 12. Qd2 {[%emt 0:01:22]} a6 {[%emt 0:00:43]} 13. Rad1 {[%emt 0:02:27]} Rab8 {[%emt 0:01:51]} 14. Nxc6 {[%emt 0:11:11]} Bxc6 $146 {[%emt 0:05:03]} ({Predecessor:} 14... bxc6 15. Na4 Qc7 16. c5 d5 17. Nb6 Rd8 18. f4 {½-½ (50) Mercadal Benejam,J (2563)-Alexandre Bisquert,F (2457) AEAC email 2003}) 15. e4 {[%emt 0:00:08]} Qa5 {[%emt 0:00:38]} 16. a3 {[%emt 0:04:16]} b5 {[%emt 0:01:37]} 17. b4 {[%emt 0:01:19]} Qc7 {[%emt 0:03:47]} 18. cxb5 {[%emt 0:02:23]} axb5 {[%emt 0:00:05]} 19. Rc1 {[%emt 0:01:38]} Qa7 {[%emt 0:02:01]} 20. Rc2 {[%emt 0:11:10]} Nd7 {[%emt 0:15:07]} 21. Rfc1 {[%emt 0:07:24]} Ne5 {[%emt 0:07:38]} 22. Nxb5 {[%emt 0:09:29]} Rxb5 {[%emt 0:00:07]} 23. Bxe5 {[%emt 0:00:32]} Bxe5 {[%emt 0:00:05]} 24. Bh3 {[%emt 0:08:47]} Rd8 {[%emt 0:05:08]} 25. Rxc6 {[%emt 0:00:22]} Qxa3 {[%emt 0:00:07]} 26. Rb1 {[%emt 0:02:36]} Rdb8 {[%emt 0:02:31]} 27. f4 {[%emt 0:07:39]} Qa7+ {[%emt 0:05:30]} 28. Kh1 {[%emt 0:00:15]} Qd4 {[%emt 0:03:47]} 29. Qc2 {[%emt 0:10:04]} Rxb4 {[%emt 0:08:40]} (29... Bf6 $5 {[%cal Rb5b4]} 30. Rc4 Qe3 $15) 30. Rc8+ $1 {[%emt 0:02:57]} Rxc8 {[%emt 0:00:39]} 31. Qxc8+ {[%emt 0:00:02]} Kg7 {[%emt 0:00:06]} 32. Rxb4 {[%emt 0:00:10]} Qxb4 {[%emt 0:00:05]} 33. fxe5 {[%emt 0:00:16]} Qe1+ {[%emt 0:00:03]} 34. Kg2 {[%emt 0:00:18]} Qxe4+ {[%emt 0:00:05]} 35. Kg1 {[%emt 0:00:44]} Qxe5 $11 {[%emt 0:00:32]} 36. Qc2 {[%emt 0:01:15]} Qe3+ {[%emt 0:06:20]} 37. Qf2 {[%emt 0:01:42]} Qxf2+ {[%emt 0:01:30]} 38. Kxf2 {[%emt 0:00:01]} Kf6 {[%emt 0:00:09]} 39. Ke3 {[%emt 0:00:26]} Ke5 {[%emt 0:00:07]} 40. Bd7 {[%emt 0:00:00]} f5 {[%emt 0:00:00]} 41. h4 {[%emt 0:05:42]} h6 {[%emt 0:11:16]} 42. Be8 {[%emt 0:04:21]} g5 {[%emt 0:02:11]} 43. hxg5 {[%emt 0:00:10]} hxg5 {[%emt 0:00:05]} 44. Bd7 {[%emt 0:01:40]} g4 {[%emt 0:22:19]} 45. Bc8 {[%emt 0:04:54]} Kf6 {[%emt 0:14:38]} 46. Kd4 {[%emt 0:01:56]} Kg5 {[%emt 0:01:09]} 47. Kd5 {[%emt 0:01:58]} f4 {[%emt 0:00:13]} 48. gxf4+ {[%emt 0:00:07]} Kxf4 {[%emt 0:00:03]} 49. Ke6 {[%emt 0:00:12]} d5 {[%emt 0:00:28]} 50. Kxd5 {[%emt 0:00:13]} g3 {[%emt 0:00:21]} 51. Bh3 {[%emt 0:00:06]} e5 {[%emt 0:00:15]} 52. Bg2 {[%emt 0:00:06]} Kf5 {[%emt 0:00:07]} 1/2-1/2

[Event "4th Batumi Cup 2018"]
[Site "Batumi"]
[Date "2018.07.07"]
[Round "6"]
[White "Lomsadze, Davit"]
[Black "Suleymanli Aydin"]
[Result "1/2-1/2"]
[ECO "D11"]
[WhiteElo "2348"]
[BlackElo "2289"]
[Annotator "NA"]
[PlyCount "114"]
[EventDate "2018.07.03"]
[EventType "swiss"]
[EventCountry "GEO"]
[SourceTitle "playchess.com"]
[Source "ChessBase"]
[SourceQuality "1"]
[TimeControl "40/5400+30:1800+30"]

1. d4 {[%emt 0:00:00]} d5 {[%emt 0:00:00]} 2. Nf3 {[%emt 0:00:00]} Nf6 {[%emt 0:00:00]} 3. g3 {[%emt 0:00:00]} c6 {[%emt 0:02:07]} 4. Bg2 {[%emt 0:00:00]} Bf5 {[%emt 0:00:02]} 5. O-O {[%emt 0:00:00]} e6 {[%emt 0:00:01]} 6. Nbd2 {[%emt 0:00:09]} h6 {[%emt 0:00:24]} 7. c4 {[%emt 0:02:09]} Nbd7 {[%emt 0:00:35]} 8. b3 {[%emt 0:01:03]} Bd6 {[%emt 0:00:27]} 9. Bb2 {[%emt 0:00:13]} Qe7 {[%emt 0:07:54] D11: Slav Defence: 3 Nf3 sidelines and 3...Nf6 4 e3 Bg4} (9... Qb8 10. Qc1 O-O 11. Ba3 b5 12. Bxd6 Qxd6 13. Qc3 bxc4 14. bxc4 Ne4 15. Nxe4 Bxe4 16. Rfc1 dxc4 17. Qxc4 {½-½ (37) Mareco,S (2645)-Vishnu,P (2510) Sharjah 2018}) 10. a3 {[%emt 0:03:23]} O-O {[%emt 0:03:23]} 11. Re1 {[%emt 0:02:32]} Bh7 {[%emt 0:16:02]} 12. Ne5 $146 {[%emt 0:03:35]} ({Predecessor:} 12. b4 Bc7 13. c5 e5 14. dxe5 Nxe5 15. Nxe5 Bxe5 16. Bxe5 Qxe5 17. Nf3 Qe7 {½-½ (71) O'Brien,M-Cummins,H Dublin 1992}) 12... Rad8 {[%emt 0:08:47]} 13. Nxd7 {[%emt 0:07:16]} Rxd7 {[%emt 0:00:55]} 14. b4 {[%emt 0:00:44]} Ne4 {[%emt 0:12:45]} 15. Nxe4 {[%emt 0:03:40]} dxe4 {[%emt 0:01:17]} 16. Qb3 {[%emt 0:00:59]} Rfd8 {[%emt 0:10:08]} 17. Rad1 {[%emt 0:02:55]} h5 {[%emt 0:04:06]} 18. Rd2 {[%emt 0:08:15]} f5 {[%emt 0:02:32]} 19. e3 {[%emt 0:01:17]} h4 {[%emt 0:01:11]} 20. b5 {[%emt 0:03:30]} hxg3 {[%emt 0:03:10]} 21. hxg3 {[%emt 0:00:08]} cxb5 {[%emt 0:00:44]} 22. c5 {[%emt 0:03:22]} Bxc5 {[%emt 0:03:06]} 23. Rc2 {[%emt 0:01:45]} Bb6 {[%emt 0:01:05]} 24. Qxb5 {[%emt 0:00:15]} Bg6 {[%emt 0:00:09]} 25. Rec1 {[%emt 0:00:36]} Be8 {[%emt 0:00:24]} 26. Qb3 {[%emt 0:00:37]} Bf7 {[%emt 0:00:27]} 27. Qb5 {[%emt 0:01:37]} Rd5 {[%emt 0:00:31]} 28. Qe2 {[%emt 0:01:19]} Qe8 {[%emt 0:01:34]} 29. g4 {[%emt 0:01:15]} Bg6 {[%emt 0:01:49]} 30. gxf5 {[%emt 0:02:35]} Bxf5 {[%emt 0:01:02]} 31. Rd2 {[%emt 0:01:30]} Qg6 {[%emt 0:05:48]} 32. f4 {[%emt 0:01:58]} exf3 {[%emt 0:02:42]} 33. Qxf3 {[%emt 0:00:03] [#]} Re5 $1 {[%emt 0:02:52]} 34. a4 {[%emt 0:06:16]} Be4 {[%emt 0:01:22]} 35. Qf4 {[%emt 0:02:26]} Rg5 {[%emt 0:00:07]} 36. Qh2 {[%emt 0:00:27]} Rh5 {[%emt 0:02:47]} 37. Qf4 {[%emt 0:00:50]} Rf8 {[%emt 0:00:56]} 38. Qxe4 {[%emt 0:00:14]} Qg3 {[%emt 0:00:07]} 39. Qf4 {[%emt 0:02:34]} Rxf4 {[%emt 0:00:09]} 40. exf4 {[%emt 0:00:00]} Qh2+ {[%emt 0:00:00]} 41. Kf1 {[%emt 0:00:19]} Rf5 {[%emt 0:01:20]} 42. Rf2 {[%emt 0:00:59]} Rxf4 {[%emt 0:00:22]} 43. Rc8+ $19 {[%emt 0:00:29]} Kf7 {[%emt 0:05:12]} 44. Bf3 {[%emt 0:01:54]} Qh3+ {[%emt 0:00:01]} 45. Ke2 {[%emt 0:00:26]} g5 {[%emt 0:01:57]} 46. a5 {[%emt 0:02:07]} Bxa5 {[%emt 0:05:36]} 47. Ba3 {[%emt 0:01:12]} Qh7 {[%emt 0:09:30]} 48. Bd6 {[%emt 0:02:16]} Rf5 {[%emt 0:09:01]} 49. Rh2 {[%emt 0:00:25]} Qg7 {[%emt 0:01:22]} 50. Bh5+ {[%emt 0:01:48]} Kf6 {[%emt 0:00:04]} 51. Rf8+ {[%emt 0:00:12]} Qxf8 {[%emt 0:00:03]} 52. Bxf8 {[%emt 0:00:08]} Bc7 {[%emt 0:00:12]} 53. Rh1 {[%emt 0:02:30]} Bb6 {[%emt 0:00:58]} 54. Kd3 {[%emt 0:03:10]} Rf4 {[%emt 0:01:28]} 55. Bc5 {[%emt 0:02:19]} Bxc5 {[%emt 0:01:03]} 56. dxc5 {[%emt 0:00:03]} Ke5 {[%emt 0:00:06]} 57. Rg1 {[%emt 0:01:29]} Kd5 {[%emt 0:00:41]} 1/2-1/2